bitfinex/quotes_SOLUSD_20220216
["timestamp","ask_amount","ask_price","bid_price","bid_amount"]
[1645042846380,18.795,103.43,103.36,53.60084132]
[1645042846581,4.835,103.45,103.36,151.93084132]
[1645042846781,13.96,103.45,103.36,151.93084132]
[1645042846983,13.96,103.45,103.36,43.50514963]
[1645042847383,24.54455042,103.44,103.36,43.50514963]
[1645042847582,38.50455042,103.44,103.32,14.5124]
[1645042847781,2.54112404,103.43,103.31,6.181]
[1645042847981,18.796,103.42,103.32,6.0]
[1645042848385,18.796,103.42,103.31,6.181]
[1645042848583,17.42173293,103.42,103.33,37.29933527]
[1645042849586,14.5143,103.4,103.33,37.29933527]
[1645042850596,14.5143,103.4,103.34,0.25]
[1645042850890,14.5143,103.4,103.34,98.58]
[1645042851084,14.5143,103.4,103.35,42.62356221]
[1645042851284,14.5143,103.4,103.34,0.25]
[1645042851486,22.5223,103.4,103.34,0.25]
[1645042852185,8.008,103.4,103.34,0.25]
[1645042852586,13.96,103.41,103.34,46.46189626]
[1645042852988,13.96,103.41,103.34,144.79189626]
[1645042853186,13.96,103.41,103.34,46.46189626]
[1645042853887,28.473,103.41,103.34,46.46189626]
[1645042856592,28.473,103.41,103.34,144.79189626]
[1645042858100,13.96,103.43,103.34,159.30159626]
[1645042858293,23.3893,103.44,103.34,159.30159626]
[1645042858495,23.3893,103.44,103.35,4.836]
[1645042858894,23.3893,103.44,103.36,35.26478327]
[1645042859095,23.3893,103.44,103.36,133.59478327]
[1645042859298,23.3893,103.44,103.36,148.10168327]
[1645042860698,2.19369881,103.43,103.34,0.25]
[1645042860901,26.95609881,103.43,103.34,0.25]
[1645042861104,16.50112404,103.42,103.34,0.25]
[1645042861300,24.7624,103.41,103.3,6.0]
[1645042861501,41.26352404,103.41,103.29,51.6678]
[1645042861702,27.59783267,103.4,103.3,38.40840406]
[1645042861900,13.96,103.39,103.3,38.40840406]
[1645042862101,2.95477472,103.38,103.3,38.40840406]
[1645042862301,18.798,103.39,103.3,38.40840406]
[1645042862507,18.798,103.39,103.3,135.11840406]
[1645042863104,18.798,103.39,103.31,0.25]
[1645042863305,13.96,103.39,103.31,0.25]
[1645042864006,13.96,103.39,103.3,149.63370406]
[1645042864911,28.4757,103.39,103.3,149.63370406]
[1645042865312,28.4757,103.39,103.31,0.25]
[1645042865723,30.03397168,103.39,103.31,0.25]
[1645042865925,28.4757,103.39,103.31,0.25]
[1645042866327,31.01682404,103.39,103.31,0.25]
[1645042866725,28.4757,103.39,103.31,0.25]
[1645042868635,13.96,103.39,103.31,0.25]
[1645042868829,22.9349,103.4,103.31,0.25]
[1645042869028,22.9349,103.4,103.32,96.71]
[1645042869430,22.9349,103.4,103.33,143.22243767]
[1645042870330,22.9349,103.4,103.33,61.02433767]
[1645042871731,22.9349,103.4,103.33,157.73433767]
[1645042871936,23.6992804,103.4,103.33,46.51243767]
[1645042872130,38.2140804,103.4,103.33,46.51243767]
[1645042872333,37.4497,103.4,103.33,46.51243767]
[1645042872732,53.95082404,103.4,103.29,46.8318]
[1645042873138,4.838,103.39,103.29,46.8318]
[1645042873333,14.5183,103.37,103.29,61.3482]
[1645042873738,14.5183,103.37,103.3,36.29516654]
[1645042873935,14.5183,103.37,103.3,36.54516654]
[1645042874937,14.5183,103.37,103.3,133.25516654]
[1645042875135,23.1632,103.38,103.3,147.77116654]
[1645042875337,36.8949,103.4,103.3,147.77116654]
[1645042875937,22.9349,103.4,103.3,147.77116654]
[1645042876343,4.838,103.42,103.31,2.06491489]
[1645042876540,22.7139,103.43,103.34,14.5096]
[1645042876737,22.7139,103.43,103.34,111.2196]
[1645042877140,2.67255175,103.42,103.35,41.58828058]
[1645042877437,22.7139,103.43,103.35,41.58828058]
[1645042878041,14.5106,103.42,103.35,41.58828058]
[1645042880443,2.00398964,103.41,103.35,41.58828058]
[1645042880647,16.51688964,103.41,103.31,14.5136]
[1645042880847,55.69731368,103.41,103.3,0.25]
[1645042881050,28.9205,103.4,103.3,0.25]
[1645042881245,31.46162404,103.4,103.3,0.25]
[1645042881650,22.6793,103.39,103.3,40.5248418]
[1645042882048,14.5174,103.38,103.3,137.2348418]
[1645042882647,22.6793,103.39,103.3,137.2348418]
[1645042883448,22.6793,103.39,103.3,151.7511418]
[1645042883847,24.0835,103.4,103.3,210.0611418]
[1645042884055,24.0835,103.4,103.32,95.90634395]
[1645042884849,24.0835,103.4,103.34,95.90634395]
[1645042885251,24.0835,103.4,103.35,130.20204422]
[1645042885450,24.1247,103.42,103.35,130.20204422]
[1645042885652,38.6366,103.42,103.35,130.20204422]
[1645042886654,38.6366,103.42,103.35,34.29570027]
[1645042887752,10.61336845,103.41,103.33,24.8657]
[1645042888052,25.12606845,103.41,103.3,14.21]
[1645042888352,22.5163,103.4,103.31,6.0]
[1645042888551,22.5163,103.4,103.3,24.8113]
[1645042888752,22.5163,103.4,103.31,96.71]
[1645042889552,37.0299,103.4,103.33,96.71]
[1645042889852,37.0299,103.4,103.31,96.71]
[1645042890053,37.0299,103.4,103.27,71.1949]
[1645042890254,2.54112404,103.39,103.27,46.021]
[1645042890453,43.91362404,103.39,103.25,14.5738]
[1645042890654,23.3536,103.38,103.25,14.5738]
[1645042890853,15.72711324,103.37,103.25,138.67356764]
[1645042891055,18.26823728,103.37,103.25,138.67356764]
[1645042891252,7.38012404,103.37,103.25,138.67356764]
[1645042891457,13.96,103.37,103.27,96.71]
[1645042891853,13.96,103.37,103.28,0.25]
[1645042892060,13.96,103.37,103.29,96.71]
[1645042892255,13.96,103.37,103.31,96.71]
[1645042893557,13.96,103.37,103.32,42.06971717]
[1645042897763,13.96,103.37,103.33,0.25]
[1645042898363,37.87,103.38,103.33,0.25]
[1645042899883,37.87,103.38,103.32,42.06971717]
[1645042900089,37.87,103.38,103.28,62.0085]
[1645042900281,42.708,103.38,103.28,14.5175]
[1645042900483,42.708,103.38,103.25,53.2337]
[1645042900686,56.668,103.38,103.25,67.1937]
[1645042900883,56.668,103.38,103.26,96.71]
[1645042901084,11.28428624,103.37,103.26,145.32102089]
[1645042901285,14.5212,103.35,103.26,159.84142089]
[1645042901884,14.5212,103.35,103.26,145.32102089]
[1645042902287,16.73409711,103.35,103.26,145.32102089]
[1645042902888,14.5212,103.35,103.26,145.32102089]
[1645042903087,14.5212,103.35,103.27,0.25]
[1645042904687,24.4618,103.36,103.27,0.25]
[1645042904890,38.9811,103.36,103.28,96.71]
[1645042905590,38.9811,103.36,103.29,43.23039252]
[1645042906992,38.9811,103.36,103.29,139.94039252]
[1645042908192,28.4775,103.38,103.29,154.45789252]
[1645042908394,22.5745,103.39,103.29,154.45789252]
[1645042909200,35.862753,103.39,103.29,154.45789252]
[1645042909799,37.0894,103.39,103.29,154.45789252]
[1645042910098,37.0894,103.39,103.31,96.71]
[1645042910898,37.0894,103.39,103.32,36.42526566]
[1645042913401,39.69197059,103.39,103.32,36.42526566]
[1645042913804,2.54112404,103.38,103.32,36.42526566]
[1645042914203,14.5188,103.37,103.32,36.42526566]
[1645042914602,46.5835,103.39,103.32,36.42526566]
[1645042915804,14.5163,103.38,103.32,36.42526566]
[1645042919206,46.5835,103.39,103.32,36.42526566]
[1645042919405,61.0985,103.39,103.32,36.42526566]
[1645042920711,61.0985,103.39,103.32,133.13526566]
[1645042920908,46.5835,103.39,103.32,147.64866566]
[1645042921114,30.29206161,103.43,103.32,147.64866566]
[1645042921309,50.44696161,103.43,103.33,2.06491489]
[1645042921709,13.59929346,103.42,103.35,96.71]
[1645042921916,13.59929346,103.42,103.36,132.28834223]
[1645042922115,13.59929346,103.42,103.32,96.71]
[1645042922317,21.17645507,103.42,103.33,6.0]
[1645042922515,16.34045507,103.42,103.33,6.0]
[1645042922916,16.34045507,103.42,103.32,96.71]
[1645042923119,16.34045507,103.42,103.33,42.231753]
[1645042923120,13.59929346,103.41,103.33,42.231753]
[1645042923717,13.59929346,103.41,103.33,138.941753]
[1645042924517,24.96798625,103.41,103.33,138.941753]
[1645042924821,28.11149346,103.41,103.33,42.231753]
[1645042925017,14.5122,103.41,103.33,42.231753]
[1645042925419,14.5122,103.41,103.33,138.941753]
[1645042927638,112.78586161,103.43,103.35,136.62664138]
[1645042927639,27.73306161,103.43,103.35,136.62664138]
[1645042927847,42.24366161,103.43,103.35,39.91664138]
[1645042928038,13.6032446,103.42,103.35,39.91664138]
[1645042928439,16.42747902,103.42,103.35,39.91664138]
[1645042928838,2.82423442,103.42,103.35,39.91664138]
[1645042929038,27.73306161,103.43,103.35,39.91664138]
[1645042929537,13.60306268,103.42,103.35,39.91664138]
[1645042929940,28.11376268,103.42,103.35,39.91664138]
[1645042930141,41.07455713,103.42,103.35,39.91664138]
[1645042930340,27.47149445,103.42,103.35,39.91664138]
[1645042930938,14.5107,103.42,103.35,39.91664138]
[1645042932344,0.74240731,103.41,103.32,119.557]
[1645042932541,0.74240731,103.41,103.32,22.847]
[1645042932542,23.91760731,103.41,103.32,22.847]
[1645042932744,14.515,103.39,103.31,24.0124]
[1645042933148,17.05612404,103.39,103.28,24.7836]
[1645042933346,24.2779,103.38,103.28,24.7836]
[1645042933551,12.75477604,103.37,103.29,131.32521235]
[1645042933752,24.2779,103.38,103.29,131.32521235]
[1645042934154,24.2779,103.38,103.3,0.25]
[1645042934352,14.5186,103.37,103.3,0.25]
[1645042934551,14.5186,103.37,103.29,131.32521235]
[1645042934851,14.5186,103.37,103.29,133.39012724]
[1645042936256,16.63693245,103.37,103.29,133.39012724]
[1645042936455,16.63693245,103.37,103.3,0.25]
[1645042937354,14.5186,103.37,103.3,0.25]
[1645042944362,15.96033477,103.37,103.29,36.68012724]
[1645042944558,15.96033477,103.37,103.24,48.3971]
[1645042944559,18.50145881,103.37,103.26,2.06491489]
[1645042944759,14.526,103.33,103.21,47.4134]
[1645042944966,14.526,103.33,103.24,2.06491489]
[1645042945163,23.5815,103.32,103.24,2.06491489]
[1645042945461,23.5815,103.32,103.25,41.05638824]
[1645042945861,23.5815,103.32,103.26,0.25]
[1645042946862,14.5256,103.32,103.26,0.25]
[1645042947064,14.5256,103.32,103.26,2.31491489]
[1645042947264,15.3340867,103.35,103.26,2.31491489]
[1645042947466,4.84,103.34,103.26,2.31491489]
[1645042947663,39.5753867,103.35,103.26,2.31491489]
[1645042947965,1.3740867,103.34,103.27,41.68604395]
[1645042948367,50.26811462,103.35,103.27,41.68604395]
[1645042948870,14.5234,103.33,103.27,41.68604395]
[1645042949070,17.32785543,103.33,103.26,2.06491489]
[1645042949270,17.32785543,103.33,103.23,14.5251]
[1645042949467,17.32785543,103.33,103.22,6.0]
[1645042949468,23.3757,103.32,103.22,6.0]
[1645042949668,50.20111074,103.32,103.21,47.7251]
[1645042949870,50.20111074,103.32,103.21,144.4351]
[1645042950069,14.5289,103.3,103.21,144.4351]
[1645042950266,46.2859,103.32,103.22,0.25]
[1645042950675,46.2859,103.32,103.23,96.71]
[1645042950968,46.2859,103.32,103.25,96.71]
[1645042951171,46.2859,103.32,103.26,145.44487993]
[1645042951372,14.5227,103.34,103.26,147.50447429]
[1645042951870,14.5227,103.34,103.26,159.96607993]
[1645042953170,14.5227,103.34,103.26,48.73487993]
[1645042953570,15.8967867,103.34,103.26,48.73487993]
[1645042953968,14.5227,103.34,103.26,48.73487993]
[1645042954173,19.3627,103.34,103.26,48.73487993]
[1645042954571,20.7367867,103.34,103.26,48.73487993]
[1645042954972,19.3627,103.34,103.26,48.73487993]
[1645042955170,14.5227,103.34,103.26,48.73487993]
[1645042956271,19.3627,103.34,103.26,48.73487993]
[1645042956470,20.7367867,103.34,103.26,48.73487993]
[1645042957174,19.3627,103.34,103.26,48.73487993]
[1645042957471,14.5227,103.34,103.26,48.73487993]
[1645042959382,19.3627,103.34,103.26,48.73487993]
[1645042959580,20.7367867,103.34,103.26,48.73487993]
[1645042960584,15.8967867,103.34,103.26,48.73487993]
[1645042962583,15.8967867,103.34,103.24,24.0245]
[1645042962783,41.79361074,103.33,103.22,0.25]
[1645042962987,14.5282,103.3,103.22,0.25]
[1645042963682,14.5282,103.3,103.22,143.7085608]
[1645042964384,14.5282,103.3,103.22,46.9985608]
[1645042964985,14.5282,103.3,103.23,96.71]
[1645042965185,14.5282,103.3,103.24,42.11287995]
[1645042965586,38.6493,103.32,103.24,42.11287995]
[1645042965988,38.6493,103.32,103.26,137.26237378]
[1645042966287,38.6493,103.32,103.26,40.55237378]
[1645042966911,38.6493,103.32,103.26,137.26237378]
[1645042967308,23.9184,103.33,103.26,137.26237378]
[1645042967509,38.4417,103.33,103.26,137.26237378]
[1645042968312,38.4417,103.33,103.26,40.55237378]
[1645042968910,1.3740867,103.34,103.28,119.0]
[1645042969113,1.3740867,103.34,103.29,110.67]
[1645042969312,24.979,103.38,103.3,13.96]
[1645042969512,24.979,103.38,103.31,96.71]
[1645042969914,24.979,103.38,103.32,43.38533969]
[1645042971814,39.4958,103.38,103.32,43.38533969]
[1645042972115,44.3328,103.38,103.32,43.38533969]
[1645042973115,39.4958,103.38,103.32,43.38533969]
[1645042974818,2.74116161,103.4,103.32,140.09533969]
[1645042975018,2.74116161,103.4,103.32,163.15493405]
[1645042975219,2.74116161,103.41,103.34,96.71]
[1645042975615,24.208498,103.4,103.33,6.0]
[1645042975816,38.721998,103.4,103.32,16.01959436]
[1645042976016,41.46315961,103.4,103.32,13.96]
[1645042976415,44.00428365,103.4,103.29,4.837]
[1645042976617,44.00428365,103.4,103.3,13.96]
[1645042976818,129.28993536,103.39,103.26,36.40551551]
[1645042977017,14.5249,103.36,103.26,34.34592115]
[1645042977221,53.972398,103.35,103.26,34.34592115]
[1645042977421,56.51352204,103.35,103.26,34.34592115]
[1645042977818,2.54112404,103.34,103.24,120.8466]
[1645042978019,16.50112404,103.34,103.24,120.8466]
[1645042978217,16.50112404,103.34,103.24,24.1366]
[1645042978620,27.38072404,103.33,103.23,22.8499]
[1645042978816,60.70692404,103.33,103.23,22.8499]
[1645042979018,5.18607205,103.32,103.23,68.20346733]
[1645042979723,46.18072404,103.33,103.24,0.25]
[1645042979919,14.5261,103.32,103.24,0.25]
[1645042980120,22.5729,103.35,103.26,96.71]
[1645042980319,4.84,103.37,103.26,110.67]
[1645042980519,4.84,103.37,103.27,119.7915]
[1645042980819,21.09622813,103.36,103.28,43.27903125]
[1645042981019,14.5231,103.34,103.28,43.27903125]
[1645042981722,4.839,103.36,103.28,43.27903125]
[1645042981922,22.9652,103.36,103.28,43.27903125]
[1645042982330,37.4855,103.36,103.28,43.27903125]
[1645042982524,37.4855,103.36,103.26,24.9729]
[1645042982525,40.02662404,103.36,103.26,24.9729]
[1645042983026,37.4855,103.36,103.26,24.9729]
[1645042983228,37.4855,103.36,103.27,96.71]
[1645042983427,37.4855,103.36,103.28,35.27699775]
[1645042983628,40.67739358,103.36,103.28,35.27699775]
[1645042984227,45.51639358,103.36,103.28,35.27699775]
[1645042985636,40.67739358,103.36,103.28,35.27699775]
[1645042986731,4.839,103.35,103.23,37.7148]
[1645042987030,14.5257,103.32,103.24,24.4199]
[1645042987231,14.5257,103.32,103.23,22.8499]
[1645042987532,17.06682404,103.32,103.23,22.8499]
[1645042987732,21.76504594,103.31,103.24,41.50144073]
[1645042988532,21.76504594,103.31,103.23,22.8499]
[1645042988732,26.60604594,103.31,103.23,22.8499]
[1645042988935,14.5298,103.29,103.21,111.2375]
[1645042989132,14.5298,103.29,103.18,28.1362]
[1645042989333,23.9203,103.28,103.18,50.949]
[1645042989536,23.9203,103.28,103.19,39.25526374]
[1645042990237,23.9203,103.28,103.2,96.71]
[1645042990840,23.9203,103.28,103.21,138.71035775]
[1645042991440,23.9203,103.28,103.22,0.25]
[1645042991642,23.9203,103.28,103.21,138.71035775]
[1645042992245,38.4514,103.28,103.21,42.00035775]
[1645042992642,21.97760027,103.27,103.19,2.05959436]
[1645042992845,21.97760027,103.27,103.18,22.8128]
[1645042993074,24.51872431,103.27,103.18,22.8128]
[1645042993469,37.8216,103.26,103.18,22.8128]
[1645042993669,37.8216,103.26,103.19,47.51323626]
[1645042993670,42.6646,103.26,103.19,47.51323626]
[1645042993874,37.8216,103.26,103.19,47.51323626]
[1645042994274,37.8216,103.26,103.2,0.25]
[1645042995273,14.532,103.28,103.21,2.05959436]
[1645042995476,23.5573,103.29,103.21,2.05959436]
[1645042996175,23.5573,103.29,103.22,36.64060065]
[1645042997175,38.0869,103.29,103.22,36.64060065]
[1645042997578,3.76833624,103.28,103.22,36.64060065]
[1645042998777,42.3583,103.29,103.22,36.64060065]
[1645042998977,14.533,103.27,103.22,36.64060065]
[1645043002879,72.0034,103.29,103.22,133.35060065]
[1645043002880,38.0877,103.29,103.22,133.35060065]
[1645043003081,23.5573,103.29,103.22,135.41000472]
[1645043003284,37.8169,103.33,103.23,0.25]
[1645043003480,48.8137,103.33,103.23,0.25]
[1645043003680,48.8137,103.33,103.24,2.05940407]
[1645043003885,48.8137,103.33,103.25,38.56302555]
[1645043004981,14.525,103.32,103.25,38.56302555]
[1645043005583,15.27817115,103.32,103.25,38.56302555]
[1645043006884,14.525,103.32,103.25,38.56302555]
[1645043007483,14.525,103.32,103.23,23.2687]
[1645043007484,2.54112404,103.31,103.23,23.2687]
[1645043007785,14.5308,103.28,103.19,42.7197]
[1645043008183,14.5308,103.28,103.2,0.25]
[1645043008588,24.2751,103.27,103.2,42.22108239]
[1645043008785,38.8073,103.27,103.2,42.22108239]
[1645043009489,43.50312855,103.27,103.2,41.97108239]
[1645043009687,38.8073,103.27,103.2,41.97108239]
[1645043011923,4.61443904,103.26,103.19,23.5616]
[1645043012223,14.5357,103.25,103.19,23.5616]
[1645043013021,14.5357,103.25,103.19,64.40001459]
[1645043014523,14.5357,103.25,103.19,40.83841459]
[1645043015125,14.5357,103.25,103.19,137.54841459]
[1645043017027,24.2751,103.27,103.19,137.54841459]
[1645043017228,38.8079,103.27,103.19,137.54841459]
[1645043017430,38.8079,103.27,103.2,0.25]
[1645043017626,45.85083364,103.27,103.2,0.25]
[1645043018632,45.85083364,103.27,103.19,137.54841459]
[1645043020835,45.85083364,103.27,103.2,0.25]
[1645043021441,38.8079,103.27,103.2,0.25]
[1645043022240,14.5302,103.29,103.2,2.30960958]
[1645043022439,39.4802,103.29,103.21,137.35792328]
[1645043023072,7.43428409,103.28,103.21,40.64792328]
[1645043023240,14.5308,103.28,103.21,40.64792328]
[1645043024145,14.5308,103.28,103.21,137.35792328]
[1645043027048,14.5291,103.29,103.21,137.35792328]
[1645043027245,23.5926,103.3,103.21,137.35792328]
[1645043027648,23.5926,103.3,103.21,139.41753286]
[1645043028043,70.92467648,103.3,103.21,137.35792328]
[1645043028245,87.99350052,103.3,103.2,22.7348]
[1645043028543,13.09801337,103.29,103.18,24.0474]
[1645043028744,2.74116161,103.28,103.18,24.0474]
[1645043028943,30.9921232,103.28,103.18,24.0474]
[1645043029144,14.5343,103.27,103.17,24.1713]
[1645043029348,24.5407,103.26,103.19,37.37627362]
[1645043030446,38.71969576,103.25,103.19,37.37627362]
[1645043030654,43.56269576,103.25,103.15,0.40898614]
[1645043030846,24.4564,103.24,103.15,0.40898614]
[1645043031046,63.72972404,103.24,103.15,0.40898614]
[1645043031447,61.1886,103.24,103.15,0.40898614]
[1645043031647,14.5401,103.22,103.15,136.55047219]
[1645043033348,14.5401,103.22,103.16,0.25]
[1645043033750,14.5401,103.22,103.15,39.84047219]
[1645043034549,38.9161,103.22,103.15,39.84047219]
[1645043034749,38.9161,103.22,103.15,0.40898614]
[1645043035753,14.543,103.2,103.15,0.40898614]
[1645043037955,14.5403,103.21,103.15,0.40898614]
[1645043039461,14.5403,103.21,103.16,48.51162492]
[1645043040559,14.5386,103.23,103.16,48.51162492]
[1645043041559,21.0471342,103.23,103.15,0.40898614]
[1645043041758,26.61652404,103.22,103.15,0.40898614]
[1645043041962,14.5423,103.2,103.15,0.40898614]
[1645043043464,6.5085342,103.19,103.15,0.40898614]
[1645043043663,31.04342404,103.2,103.15,0.40898614]
[1645043044562,54.65763025,103.2,103.15,0.40898614]
[1645043045362,31.04342404,103.2,103.15,0.40898614]
[1645043045583,28.5023,103.2,103.15,0.40898614]
[1645043045760,23.5656,103.19,103.15,0.40898614]
[1645043045961,14.5483,103.18,103.15,0.40898614]
[1645043046161,3.03219997,103.17,103.15,0.40898614]
[1645043046563,25.48634094,103.17,103.15,0.40898614]
[1645043047364,3.03219997,103.17,103.15,0.40898614]
[1645043047967,14.5483,103.16,103.15,0.40898614]
[1645043048964,40.56169997,103.17,103.15,0.40898614]
[1645043049771,26.01579997,103.17,103.15,0.40898614]
[1645043050164,3.03219997,103.17,103.15,0.40898614]
[1645043050367,24.1389,103.21,103.15,0.40898614]
[1645043050566,5.902,103.23,103.15,0.40898614]
[1645043051171,5.902,103.23,103.16,96.71]
[1645043051368,5.902,103.23,103.17,41.98611277]
[1645043051971,20.4395,103.23,103.17,41.98611277]
[1645043053114,5.902,103.23,103.17,138.69611277]
[1645043054276,5.902,103.23,103.17,41.98611277]
[1645043054482,20.4397,103.23,103.17,41.98611277]
[1645043055481,20.4397,103.23,103.15,0.40898614]
[1645043055684,2.54112404,103.22,103.15,0.40898614]
[1645043055880,14.541,103.21,103.15,0.40898614]
[1645043058381,14.541,103.21,103.15,0.65898614]
[1645043058581,14.541,103.21,103.16,37.83514019]
[1645043061108,14.541,103.21,103.15,0.65898614]
[1645043061505,33.346,103.21,103.15,0.65898614]
[1645043062104,41.14734846,103.21,103.15,0.40898614]
[1645043063405,36.30234846,103.21,103.15,0.40898614]
[1645043064604,41.14734846,103.21,103.15,0.40898614]
[1645043065204,28.501,103.21,103.15,0.40898614]
[1645043066205,51.53906498,103.21,103.15,0.40898614]
[1645043066408,28.501,103.21,103.15,0.40898614]
[1645043067411,4.845,103.2,103.15,0.40898614]
[1645043067611,14.5456,103.19,103.15,0.40898614]
[1645043067811,55.28752404,103.19,103.15,0.40898614]
[1645043068009,52.7464,103.19,103.15,0.40898614]
[1645043068312,28.94392782,103.18,103.15,0.40898614]
[1645043068511,17.57929997,103.17,103.15,0.40898614]
[1645043073318,3.03219997,103.17,103.15,0.40898614]
[1645043075321,24.2408,103.19,103.15,0.40898614]
[1645043076921,14.5446,103.18,103.15,0.40898614]
[1645043077221,3.03219997,103.17,103.15,42.82152365]
[1645043077424,3.03219997,103.17,103.15,0.40898614]
[1645043077620,14.5446,103.18,103.15,0.40898614]
[1645043078423,3.03219997,103.17,103.15,0.40898614]
[1645043078823,38.7839,103.19,103.15,0.40898614]
[1645043080924,24.2408,103.19,103.15,0.40898614]
[1645043081723,24.2408,103.19,103.15,37.39138861]
[1645043083325,14.5402,103.22,103.15,134.10138861]
[1645043083726,14.5402,103.22,103.15,136.15020781]
[1645043084229,45.8064,103.24,103.15,136.15020781]
[1645043085428,14.5346,103.25,103.15,208.99570781]
[1645043085629,2.74116161,103.27,103.17,96.71]
[1645043085829,22.3058867,103.28,103.17,155.02]
[1645043086031,22.3058867,103.28,103.21,96.71]
[1645043086231,13.75267142,103.27,103.22,38.12865253]
[1645043086435,13.75267142,103.27,103.22,134.83865253]
[1645043086631,52.06386161,103.3,103.22,134.83865253]
[1645043086941,13.76410965,103.29,103.22,134.83865253]
[1645043087731,13.76410965,103.29,103.22,38.12865253]
[1645043087932,28.29430965,103.29,103.22,38.12865253]
[1645043088532,13.76410965,103.28,103.22,38.12865253]
[1645043089233,15.13476987,103.28,103.22,38.12865253]
[1645043089434,1.37066022,103.28,103.22,38.12865253]
[1645043090833,28.45548017,103.28,103.2,96.71]
[1645043091039,28.45548017,103.28,103.19,14.5303]
[1645043091040,13.74488175,103.27,103.18,48.7535]
[1645043091234,1.37066022,103.26,103.18,48.7535]
[1645043091439,15.33066022,103.26,103.19,96.71]
[1645043091634,1.37066022,103.25,103.19,96.71]
[1645043091839,1.37066022,103.25,103.2,45.1732397]
[1645043092837,15.90626022,103.25,103.2,45.1732397]
[1645043094040,15.90626022,103.25,103.15,2.45780534]
[1645043094239,24.83886022,103.24,103.15,0.40898614]
[1645043094461,14.5384,103.23,103.15,0.40898614]
[1645043095060,36.87270633,103.23,103.15,47.62910309]
[1645043095261,38.24336655,103.23,103.15,47.62910309]
[1645043096062,43.08836655,103.23,103.15,47.62910309]
[1645043096565,14.541,103.21,103.15,47.62910309]
[1645043097565,14.541,103.21,103.15,144.33910309]
[1645043097764,14.541,103.21,103.16,0.25]
[1645043099368,14.541,103.21,103.15,47.62910309]
[1645043100268,15.90966022,103.22,103.15,144.33910309]
[1645043100471,14.539,103.22,103.15,146.38792229]
[1645043100668,1.37066022,103.23,103.15,146.38792229]
[1645043100867,1.37066022,103.23,103.16,0.25]
[1645043101168,24.83886022,103.24,103.16,0.25]
[1645043101367,24.83886022,103.24,103.16,2.2988192]
[1645043101978,14.5376,103.23,103.16,2.2988192]
[1645043102174,14.5376,103.23,103.17,46.25246667]
[1645043103075,15.90826022,103.23,103.17,46.25246667]
[1645043103985,15.90826022,103.23,103.17,142.96246667]
[1645043104177,1.37066022,103.24,103.17,203.32128587]
[1645043104382,1.37066022,103.26,103.19,96.71]
[1645043104579,1.37066022,103.27,103.19,96.71]
[1645043104778,1.37066022,103.27,103.2,2.0488192]
[1645043104977,1.37066022,103.27,103.22,139.86252558]
[1645043105178,1.37066022,103.27,103.22,43.15252558]
[1645043105982,1.37066022,103.27,103.18,2.0488192]
[1645043106185,1.37066022,103.27,103.17,96.71]
[1645043106186,1.37066022,103.25,103.17,96.71]
[1645043106482,1.37066022,103.24,103.17,96.71]
[1645043106682,1.37066022,103.24,103.18,6.0]
[1645043106884,21.7992073,103.23,103.16,35.18906209]
[1645043107082,1.37066022,103.23,103.16,35.18906209]
[1645043107283,3.91178426,103.23,103.16,35.18906209]
[1645043107485,1.37066022,103.22,103.16,35.18906209]
[1645043107683,6.21566022,103.22,103.16,35.18906209]
[1645043107890,1.37066022,103.22,103.16,35.18906209]
[1645043108887,15.90956022,103.22,103.16,35.18906209]
[1645043109286,15.90956022,103.22,103.17,0.25]
[1645043109887,1.37066022,103.22,103.17,0.25]
[1645043110188,6.21566022,103.23,103.17,0.25]
[1645043110386,63.0707,103.24,103.17,0.25]
[1645043110387,64.44136022,103.24,103.17,0.25]
[1645043111187,1.37066022,103.24,103.17,6.25]
[1645043111388,1.37066022,103.24,103.18,96.71]
[1645043112389,1.37066022,103.24,103.19,142.22801502]
[1645043112591,1.37066022,103.24,103.19,45.51801502]
[1645043113112,1.37066022,103.24,103.19,142.22801502]
[1645043116190,1.37066022,103.24,103.19,45.51801502]
[1645043117597,1.37066022,103.23,103.19,45.51801502]